Cogmind - Beta 15 @@@ ROGUE MODE // 2025.05.31 @ 15:12:55 Player: puppuppit Result: Destroyed by S-10 Pest with Light Assault Rifle Performance ------------- Evolutions (0) 0 Regions Visited (1) 200 Robots Destroyed (35) 175 Value Destroyed (549) 549 Prototype IDs (0) 0 Alien Tech Used (0) 0 Bonus (0) 0 TOTAL SCORE: 924 Bonus ------- None Cogmind --------- Core Integrity 0/250 Matter 272/300 Energy 100/100 System Corruption 0% Temperature Cool (0) Movement Rolling (90) Location -10/Materials Parts ------- > --- POWER (1) -------- (None) > --- PROPULSION (2) --- Wheel Compact Wheel > --- UTILITY (2) ------ Large Storage Unit Hacking Suite > --- WEAPON (2) ------- Light Assault Rifle Light Assault Rifle > --- INVENTORY (15) --- Small Storage Unit High-capacity Matter Pod (200) Structural Scanner Improved Terrain Scanner Light Armor Plating Hammer Peak State ------------ > --- POWER ------------ Light Ion Engine > --- PROPULSION ------- Light Treads Light Treads > --- UTILITY ---------- Small Storage Unit Improved Terrain Scanner > --- WEAPON ----------- Assault Rifle Assault Rifle > --- INVENTORY -------- Wheel Compact Wheel Small Matter Pod [Rating: 9] Favorites ----------- Power Light Ion Engine Engine Light Ion Engine Propulsion Light Treads Treads Light Treads Wheel Wheel Utility Small Storage Unit Device Structural Scanner Storage Small Storage Unit Hackware Hacking Suite Protection Light Armor Plating Weapon Assault Rifle Ballistic Gun Assault Rifle Build | -11 -10 ------- Run | Yrd Mat Slots Evolved . | . . Power . | . . Propulsion . | . . Utility . | . . Weapon . | . . Parts Attached 15 | 9 6 Power 1 | 1 . Engine 1 | 1 . Core . | . . Reactor . | . . Propulsion 4 | 4 . Treads 2 | 2 . Leg . | . . Wheel 2 | 2 . Hover . | . . Flight . | . . Utility 6 | 2 4 Device 2 | 1 1 Storage 2 | 1 1 Processor . | . . Hackware 1 | . 1 Protection 1 | . 1 Artifact . | . . Weapon 4 | 2 2 Energy Gun . | . . Energy Cannon . | . . Ballistic Gun 4 | 2 2 Ballistic Cannon . | . . Launcher . | . . Special Weapon . | . . Impact Weapon . | . . Slashing Weapon . | . . Piercing Weapon . | . . Special Melee Weapon . | . . Unidentified Prototypes . | . . Parts Lost 5 | . 5 Power 1 | . 1 Propulsion 2 | . 2 Utility . | . . Weapon 2 | . 2 Highest Loss Streak 5 | . 5 To Critical Strikes . | . . Average Backups 5 | 2 6 Power . | . . Propulsion 1 | 1 1 Utility 2 | . 3 Weapon 1 | . 1 Tool/Special . | . . Unused Backups 3 | . 3 Power . | . . Propulsion . | . . Utility 2 | . 2 Weapon 1 | . 1 Tool/Special . | . . Average Slot Usage (%) 97 | . 97 Engine 12 | . 12 Treads 25 | . 25 Wheel 1 | . 1 Device 12 | . 12 Storage 14 | . 14 Protection 1 | . 1 Ballistic Gun 28 | . 28 Peak Build Rating 9 | 9 9 Average Rating 7 | 5 7 On Entrance 4 | . 9 Naked Turns . | . . Heaviest Build 25 | 13 25 Greatest Support 40 | 40 40 Greatest Overweight (x) 3 | . 3 Average Overweight (x) . | . . Largest Inventory Capacity 15 | 8 15 Average Capacity 7 | 7 8 Most Carried 8 | 3 8 Average Carried 5 | 2 6 Final Capacity 15 | 8 15 Final Carried 6 | 3 6 Class Distribution -------------------- 100% | Mutant Dominant Class ---------------- Mutant | -10/Materials Resources | -11 -10 ----------- Run | Yrd Mat Matter Collected 1118 | 409 709 Remotely . | . . Salvage Created 1069 | 165 904 Parts 70 | 12 58 Haulers Intercepted 2 | . 2 Recyclers Shooed 2 | . 2 Parts Field Recycled . | . . Retrieved Matter . | . . Parts Self-Destructed . | . . Prevented . | . . Kills | -11 -10 ------- Run | Yrd Mat Combat Hostiles Destroyed 15 | . 15 Guns 15 | . 15 Classes Destroyed 9 | 3 6 Worker 6 | 2 4 Builder 2 | . 2 Tunneler 3 | 3 . Hauler 2 | . 2 Recycler 3 | 1 2 Operator 1 | . 1 Watcher 3 | . 3 Swarmer 5 | . 5 Grunt 10 | . 10 Best Kill Streak 6 | 6 6 Combat Bots Only 3 | . 3 Max Kills in Single Turn 1 | 1 1 Gunslinging . | . . Exploded . | . . Melee . | . . Uniques/NPCs Destroyed . | . . Combat | -11 -10 -------- Run | Yrd Mat Hostile Shots Fired 100 | . 100 Missed 16 | . 16 Hits 84 | . 84 Projectile 84 | . 84 Damage Taken 972 | . 972 Core 250 | . 250 Absorbed by Shields . | . . Core Remaining (%) 100 | 100 . Volleys Fired 102 | 13 89 Largest 2 | 2 2 Hottest 40 | 40 40 Shots Fired 204 | 26 178 Gun 204 | 26 178 Cannon . | . . Launcher . | . . Special . | . . Kinetic 204 | 26 178 Thermal . | . . Explosive . | . . Electromagnetic . | . . Robot Hit Streak 10 | 6 10 Robot Miss Streak 5 | 2 5 Penetration Max . | . . Secondary Targets 2 | . 2 Max Gunslinging Chain 1 | . 1 Shots Hit Robots 130 | 16 114 Core Hits 56 | 7 49 Critical Kills 1 | . 1 Critical Parts Destroyed . | . . Critical Strikes 1 | . 1 Destroy 1 | . 1 Melee Attacks . | . . Impact . | . . Slashing . | . . Piercing . | . . Sneak Attacks . | . . Combat Hostiles . | . . Follow-up Attacks . | . . Damage Inflicted 1590 | 198 1392 Guns 1590 | 198 1392 Cannons . | . . Explosions . | . . Melee . | . . Ramming . | . . Kinetic 1590 | 198 1392 Thermal . | . . Explosive . | . . Electromagnetic . | . . Impact . | . . Slashing . | . . Piercing . | . . Highest Corruption . | . . Average Corruption . | . . Corruption Purged . | . . Corruption Blocked . | . . Overload Shots . | . . Overflow Damage . | . . Projectiles . | . . Explosions . | . . Melee . | . . Knockbacks . | . . Impact . | . . Kinetic . | . . Secondary . | . . Self-Inflicted Damage . | . . Shots . | . . Rammed . | . . Targets Rammed . | . . Kicked . | . . Crushed . | . . Highest Temperature 18 | . 18 Average Temperature 5 | . 5 Received Heat Transfer 486 | . 486 Siege Activations . | . . Martial Activations . | . . Shielding Activations . | . . Robots Disrupted . | . . Combat Hostiles . | . . Robots Corrupted . | . . Combat Hostiles . | . . Parts Fried . | . . Impact Corruptions . | . . Robots Melted . | . . Combat Hostiles . | . . Parts Melted . | . . Heat Transferred . | . . Parts Sabotaged . | . . Parts Stolen . | . . Parts Stripped . | . . Power Chain Reactions . | . . Alert | -11 -10 ------- Run | Yrd Mat Maximum Alert Level . | . . Low Security (%) 100 | 100 100 Level 1 . | . . Level 2 . | . . Level 3 . | . . Level 4 . | . . Level 5 . | . . High Security . | . . Max Security . | . . Peak Influence 147 | 15 147 Initial . | . . Average 56 | 1 67 Influence Increases 582 | 30 552 Destroy 0b10 Robot/C 300 | . 300 Destroy 0b10 Robot/NC 100 | 30 70 Destroy Leader 80 | . 80 Successful Hack 11 | . 11 Select Force Hacks 30 | . 30 Disable Machine 15 | . 15 Destroy Structure 1 | . 1 Lose Combat Pursuer 45 | . 45 Influence Decreases 435 | 30 405 Time Decay 385 | 30 355 Lost Part 50 | . 50 Squads Dispatched 5 | . 5 Investigation 3 | . 3 Extermination . | . . Reinforcement 2 | . 2 Assault . | . . Garrison . | . . Intercept . | . . Searches Triggered . | . . Construction Impeded . | . . Haulers Reinforced . | . . Active Scanning Responses . | . . Cargo Convoy Interrupts . | . . Stealth | -11 -10 --------- Run | Yrd Mat Distress Signals 2 | . 2 Communications Jammed . | . . Distress Signals . | . . Times Spotted 26 | . 26 Peak Tracking Total 4 | . 4 Tactical Retreats 2 | . 2 Traps | -11 -10 ------- Run | Yrd Mat Traps Triggered 2 | . 2 Indirectly . | . . Trap Hack Attempts . | . . Triggered . | . . Disarmed . | . . Reprogrammed . | . . Reused . | . . Traps Extracted . | . . Installed . | . . Triggered . | . . Machines | -11 -10 ---------- Run | Yrd Mat Machines Disabled 1 | . 1 Max in Single Turn 1 | . 1 Machines Repaired . | . . Machines Dismantled . | . . Machines Sabotaged . | . . Overloaded Fab Kills . | . . Hacking | -11 -10 --------- Run | Yrd Mat Machines Accessed 2 | . 2 Terminals 1 | . 1 Fabricators . | . . Repair Stations . | . . Recycling Units 1 | . 1 Scanalyzers . | . . Garrison Access . | . . Total Hacks 5 | . 5 Successful 3 | . 3 Failed 2 | . 2 Catastrophic . | . . Database Lockouts . | . . Manual 5 | . 5 Terminals 4 | . 4 Fabricators . | . . Repair Stations . | . . Recycling Units 1 | . 1 Scanalyzers . | . . Garrison Access . | . . Terminal Hacks 1 | . 1 Terminal Index 1 | . 1 Fabricator Hacks . | . . Repair Station Hacks . | . . Recycling Unit Hacks . | . . Scanalyzer . | . . Garrison Access Hacks . | . . Unauthorized Hacks 2 | . 2 Terminals 1 | . 1 Botnet 1 | . 1 Fabricators . | . . Repair Stations . | . . Recycling Units 1 | . 1 Tunnel 1 | . 1 Scanalyzers . | . . Garrison Access . | . . Data Cores Recovered . | . . Used . | . . Hacking Detections 1 | . 1 Full Trace Events . | . . Feedback Events . | . . Feedback Blocked . | . . Robot Schematics Acquired . | . . Robots Built . | . . Authchips . | . . Time . | . . Total Robot Build Rating . | . . Part Schematics Acquired . | . . Parts Built . | . . Authchips . | . . Time . | . . Total Part Build Rating . | . . Parts Repaired . | . . Time . | . . Parts Recycled . | . . Recycled Matter . | . . Retrieved Matter . | . . Retrieved Components . | . . Parts Scanalyzed . | . . Part Schematics Acquired . | . . Parts Damaged . | . . Bothacking | -11 -10 ------------ Run | Yrd Mat Used RIF Installer . | . . Robots Hacked . | . . Non-combat . | . . Combat . | . . Robot Hacks Applied . | . . Relay Couplers Released . | . . Fabnet Peak Effective % . | . . Robots Rewired . | . . Allies Hacked . | . . Hacks Repelled . | . . Allies | -11 -10 -------- Run | Yrd Mat Total Allies . | . . Largest Group . | . . Highest-Rated Group . | . . Highest-Rated Ally . | . . Total Orders . | . . Ally Attacks . | . . Total Damage . | . . Kills . | . . Allies Corrupted . | . . Allies Melted . | . . Intel | -11 -10 ------- Run | Yrd Mat Active Infowar (turns) 892 | 19 873 Terrain 116 | 19 97 Structural 776 | . 776 Robot Analysis Total . | . . Derelict Logs Recovered . | . . Drone Launches . | . . Drone Recoveries . | . . Exploration | -11 -10 ------------- Run | Yrd Mat Turns Passed 1145 | 185 960 Spaces Moved 517 | 89 428 Core 6 | 1 5 Treads 473 | 73 400 Legs . | . . Wheels 38 | 15 23 Hover . | . . Flight . | . . Fastest Speed 50 | 50 90 Average Speed 154 | 146 156 Slowest Speed 200 | 160 200 Overloaded Moves . | . . Propulsion Burnouts . | . . Robots Hopped . | . . Potential Cave-ins . | . . Cave-ins Triggered . | . . Exploration Rate (%) 39 | 6 72 Regions Visited 1 Branch Regions . Pre-discovered Areas 1 | . 1 Known Exits Taken . | . . Unknown Exits Taken 1 | 1 . Scrap Searched . | . . Spaces Dug . | . . Terrain Destroyed . | . . Melee . | . . Projectile . | . . AOE . | . . Terrain Rammed . | . . Walls Destroyed . | . . Machines Disabled . | . . Actions | -11 -10 --------- Run | Yrd Mat Total 658 | 113 545 Wait 13 | . 13 Move 516 | 88 428 Hop . | . . Pick Up 9 | 3 6 Fast Attach 8 | 7 1 Attach 3 | . 3 Detach . | . . Swap 6 | 2 4 Drop 1 | . 1 Fire 102 | 13 89 Melee . | . . Ram . | . . Kick . | . . Crush . | . . Escape Stasis . | . . Rewire . | . . Trap . | . . Miscellaneous . | . . Route ------- -11/Scrapyard -10/Materials (discovered 3 exits: [*Mat x2] / [*Min]) History --------- Turn | Location | Event 12 | -11/Scrapyard | Discovered new exit (range 16) 186 | -11/Scrapyard | Entered Materials 304 | -10/Materials | Build established: Mutant 326 | -10/Materials | Discovered new exit (range 12) 558 | -10/Materials | Discovered new exit (range 12) 945 | -10/Materials | Core integrity fell below 50% 1089 | -10/Materials | Core integrity fell below 20% 1107 | -10/Materials | Lost 5 parts (1p2n2w) 1122 | -10/Materials | Discovered new exit (range 8) 1146 | -10/Materials | Destroyed by S-10 Pest with Light Assault Rifle Last Messages --------------- 01067_ G-34 Mercenary destroyed. 01070_ Assault Rifle destroyed. 01072_ Acquired Lgt. Assault Rifle. 01072_ Lgt. Ion Engine destroyed. 01076_ Lgt. Treads destroyed. 01089_ G-34 Mercenary destroyed. 01089_ Switching to secondary target: G-34 Mercenary. 01092_ K-01 Serf collects debris. 01094_ G-34 Mercenary destroyed. 01096_ K-01 Serf collects debris. 01097_ Acquired 34 matter. 01100_ K-01 Serf collects debris. 01108_ Acquired 5 matter. 01109_ Acquired 15 matter. 01111_ Acquired 2 matter. 01113_ K-01 Serf destroyed. 01116_ Acquired 2 matter. 01122_ EXIT=FOUND 01135_ Connecting with Terminal... 01145_ S-10 Pest destroyed. Map ----- +----------------------------------------------------+ | ?????????????## # | | ?????????????## "" #= | | ?????????????## "T + | | ?????????????## "" *###### | | ?????????????### ! == * | | ????????????? # ##### | | ?????????????? + ""%%" ##### | | ?????????????? # """"" ##?## | | ?????????????? # """""= ##?## | | ?????????????? # ^""""" * ##### | | ?????????????? # """"" ##### | | ?????????????? # """"" | | ?????????????? # """"" * =* | | ??????????????## = ! ! | | ??????????????## ##### | | ??????????????## #######+####### | | ??????????????## ### = + | | ??????????????## ### """ ### | | ??????????????## ### """ Y" #! | | ??????????????## ### """ """ # | | ?????######???## ### """ # | | ????##!! !##??## ### # | | ????#! !#??## ### # | | ????# #??## ### # | | ????#### ##### ############### | | ?????? # @ ### # ######### | | ?????? # ![% ##??????# | | ???"" %s[ T [ * ######### | | ? """ # =% ######### | | ? # ####### ## ! ## | | # """ ## ########= #### # | | ? """???# #????? # #### # | | ? ""????# #????? # !#### # | | ?? ?????# +????? # %#### # | | ????????# #????? # #### # | | ????????# < #????? # #### # | | ????????# #????? # #### # | | ????????#####?????## #### # | | ??????????????????## #### # | | ??????????????????## #### ! # | | ??????????????????## #### =*[# | | ??????????????????## #######+## | | ??????????????????## %= | | ??????????????????## | | ??????????????????## | | ??????????????????################ | | ??????????????????################ | | ?????????????????????????????????? | | ?????????????????????????????????? | | | +----------------------------------------------------+ Best States ------------- Heat Dissipation 25 Energy Generation 10 Energy Capacity 125 Matter Stores 300 Matter Capacity 300 Sight Range 16 Terrain Scan Range 16 Terrain Scan Density 10 Armor Coverage 150 Evasion (%) 42 Recoil Reduction 2 Offensive Hacking 10 Item Schematics ----------------- None Robot Schematics ------------------ None Fabricated ------------ Nothing Repaired ---------- Nothing Alien Tech Used ----------------- None Achievements -------------- None Challenges ------------ None Game ------ Seed TransportLightNanoactuators Manual? 0 Play Time 00:06:19 Cumulative 245.0 hours Start 2025.05.31 @ 15:07:39 End 2025.05.31 @ 15:12:55 Sessions 1 Manual Loads 0 Difficulty Rogue Special Mode None Game No. 149 Rogue 149 Adventurer 0 Explorer 0 Win Type - Total 3 Types 1/0/1/1/0/0/0/0/0/0 Lore% 79 Gallery% 65 Achievement% 63 Wizard Run 0 Options --------- Layout 2 ASCII 0 Keyboard 1 Movement Vi Keybinds 0 Fullscreen 1 Font 16/SmallcapsGlow Map View 55x47 Zoom Use 0% Tactical HUD 1 Map Filters NONE Filters NONE Steam 0 RUN: 4fb10bc9-a370-4021-9938-8b03503d4501